[Event "3rd FIDE WCCC Blitz G10 2019"]
[Site "Minsk"]
[Date "2019.08.18"]
[Round "2.3"]
[White "Nurgaliyeva, Zarina"]
[Black "Dolinskaya, Mariia"]
[Result "1-0"]
[ECO "C00"]
[WhiteElo "1474"]
[BlackElo "1460"]
[Annotator "NA"]
[PlyCount "37"]
[EventDate "2019.08.18"]
[EventType "swiss"]
[EventCountry "BLR"]
[SourceTitle "playchess.com"]
[Source "ChessBase"]
[SourceQuality "1"]
[TimeControl "300+2"]

1. e4 {[%emt 0:00:00]} e6 {[%emt 0:00:00]} 2. d4 {[%emt 0:00:00]} d5 {[%emt 0:00:00]} 3. Bd3 {[%emt 0:00:01]} Nf6 {[%emt 0:00:03]} 4. e5 {[%emt 0:00:01]} Nfd7 {[%emt 0:00:01]} 5. Nf3 {[%emt 0:00:02]} c5 {[%emt 0:00:02]} 6. c3 {[%emt 0:00:02]} Nc6 {[%emt 0:00:01]} 7. O-O {[%emt 0:00:03]} Qb6 {[%emt 0:00:04]} 8. Bc2 {[%emt 0:00:01]} Be7 {[%emt 0:00:16]} 9. Re1 {[%emt 0:00:04]} O-O {[%emt 0:00:07]} 10. dxc5 {[%emt 0:00:14]} Bxc5 {[%emt 0:00:08]} 11. Bxh7+ {[%emt 0:00:04]} Kh8 {[%emt 0:01:05]} 12. Bc2 {[%emt 0:00:21]} Bxf2+ {[%emt 0:00:49]} 13. Kh1 {[%emt 0:00:01]} Bxe1 {[%emt 0:00:47]} 14. Qxe1 {[%emt 0:00:07]} g6 {[%emt 0:00:43]} 15. Qh4+ {[%emt 0:00:08]} Kg7 {[%emt 0:00:03]} 16. Qh6+ {[%emt 0:00:07]} Kg8 {[%emt 0:00:10]} 17. Ng5 {[%emt 0:00:02]} Re8 {[%emt 0:00:51]} 18. Qh7+ {[%emt 0:00:02]} Kf8 {[%emt 0:00:01]} 19. Qxf7# {[%emt 0:00:03]} 1-0

[Event "3rd FIDE WCCC Blitz G10 2019"]
[Site "Minsk"]
[Date "2019.08.18"]
[Round "2.4"]
[White "Mai, Hieu Linh"]
[Black "Mutina, Sofia"]
[Result "1-0"]
[ECO "B17"]
[WhiteElo "1344"]
[BlackElo "1421"]
[Annotator "NA"]
[PlyCount "43"]
[EventDate "2019.08.18"]
[EventType "swiss"]
[EventCountry "BLR"]
[SourceTitle "playchess.com"]
[Source "ChessBase"]
[SourceQuality "1"]
[TimeControl "300+2"]

1. e4 {[%emt 0:00:01]} c6 {[%emt 0:00:00]} 2. d4 {[%emt 0:00:02]} d5 {[%emt 0:00:00]} 3. Nc3 {[%emt 0:00:01]} dxe4 {[%emt 0:00:02]} 4. Nxe4 {[%emt 0:00:02]} Nd7 {[%emt 0:00:02]} 5. Nf3 {[%emt 0:00:04]} Ngf6 {[%emt 0:00:01]} 6. Ng3 {[%emt 0:00:06]} e6 {[%emt 0:00:01]} 7. Bd3 {[%emt 0:00:08]} Bd6 {[%emt 0:00:02]} 8. O-O {[%emt 0:00:05]} O-O {[%emt 0:00:02]} 9. b3 {[%emt 0:00:08]} Nb6 {[%emt 0:00:07]} 10. Bb2 {[%emt 0:00:02]} Nbd5 {[%emt 0:00:04]} 11. c4 {[%emt 0:00:06]} Nf4 {[%emt 0:00:01]} 12. Bc2 {[%emt 0:00:06]} b6 {[%emt 0:00:13]} 13. Qd2 {[%emt 0:00:31]} Ba6 {[%emt 0:00:10]} 14. Rad1 {[%emt 0:00:25]} Qe7 {[%emt 0:00:11]} 15. Rfe1 {[%emt 0:00:08]} Bb4 {[%emt 0:00:37]} 16. Qxf4 {[%emt 0:00:10]} Bxe1 {[%emt 0:00:01]} 17. Rxe1 {[%emt 0:00:02]} Rad8 {[%emt 0:00:11]} 18. Nf5 {[%emt 0:00:24]} Qd7 {[%emt 0:00:02]} 19. Nxg7 {[%emt 0:00:11]} Qe7 {[%emt 0:01:17]} 20. Nf5 {[%emt 0:00:11]} Qd7 {[%emt 0:00:11]} 21. Qg5+ {[%emt 0:00:04]} Kh8 {[%emt 0:00:04]} 22. Qg7# {[%emt 0:00:02]} 1-0

[Event "3rd FIDE WCCC Blitz G10 2019"]
[Site "Minsk"]
[Date "2019.08.18"]
[Round "2.5"]
[White "Sidorenja, Milena"]
[Black "Kayumova, Karina"]
[Result "1-0"]
[ECO "C44"]
[WhiteElo "1573"]
[BlackElo "1085"]
[Annotator "NA"]
[PlyCount "93"]
[EventDate "2019.08.18"]
[EventType "swiss"]
[EventCountry "BLR"]
[SourceTitle "playchess.com"]
[Source "ChessBase"]
[SourceQuality "1"]
[TimeControl "300+2"]

1. e4 {[%emt 0:00:00]} e5 {[%emt 0:00:00]} 2. Nf3 {[%emt 0:00:00]} Nc6 {[%emt 0:00:00]} 3. d4 {[%emt 0:00:01]} exd4 {[%emt 0:00:00]} 4. c3 {[%emt 0:00:01]} dxc3 5. Nxc3 {[%emt 0:00:01]} Bb4 {[%emt 0:00:05]} 6. Bc4 {[%emt 0:00:02]} d6 {[%emt 0:00:01]} 7. O-O {[%emt 0:00:05]} Nge7 {[%emt 0:00:02]} 8. Nd5 {[%emt 0:00:02]} Bc5 {[%emt 0:00:06]} 9. Bg5 {[%emt 0:00:50]} O-O {[%emt 0:00:05]} 10. h3 {[%emt 0:00:23]} h6 {[%emt 0:00:01]} 11. Bh4 {[%emt 0:00:03]} Be6 {[%emt 0:00:08]} 12. Re1 {[%emt 0:00:40]} Qd7 {[%emt 0:00:16]} 13. Qd2 {[%emt 0:01:06]} Bxd5 {[%emt 0:00:17]} 14. exd5 {[%emt 0:00:02]} Nf5 {[%emt 0:00:13]} 15. dxc6 {[%emt 0:00:02]} Qxc6 {[%emt 0:00:06]} 16. Qc2 {[%emt 0:00:50]} Nd4 {[%emt 0:00:27]} 17. Nxd4 {[%emt 0:00:23]} Bxd4 {[%emt 0:00:02]} 18. Rad1 {[%emt 0:00:09]} Bxb2 {[%emt 0:00:24]} 19. Bxf7+ {[%emt 0:00:09]} Rxf7 {[%emt 0:00:11]} 20. Qxb2 {[%emt 0:00:02]} Rff8 {[%emt 0:00:01]} 21. Re7 {[%emt 0:00:04]} Rf7 {[%emt 0:00:11]} 22. Rde1 {[%emt 0:00:01]} Raf8 {[%emt 0:00:16]} 23. Qb3 {[%emt 0:00:12]} g5 {[%emt 0:00:25]} 24. Rxf7 {[%emt 0:00:10]} Rxf7 {[%emt 0:00:01]} 25. Re7 {[%emt 0:00:08]} Qc1+ {[%emt 0:00:14]} 26. Kh2 {[%emt 0:00:01]} Qf4+ {[%emt 0:00:02]} 27. Bg3 {[%emt 0:00:02]} Qf6 {[%emt 0:00:04]} 28. Rxc7 {[%emt 0:00:04]} Kf8 {[%emt 0:00:18]} 29. Rxf7+ {[%emt 0:00:05]} Qxf7 {[%emt 0:00:02]} 30. Bxd6+ {[%emt 0:00:02]} Kg7 {[%emt 0:00:01]} 31. Qxf7+ {[%emt 0:00:04]} Kxf7 {[%emt 0:00:01]} 32. Bc5 {[%emt 0:00:02]} a6 {[%emt 0:00:01]} 33. Kg3 {[%emt 0:00:03]} Kg6 {[%emt 0:00:03]} 34. Be3 {[%emt 0:00:03]} b5 {[%emt 0:00:02]} 35. Bd2 {[%emt 0:00:03]} Kf5 {[%emt 0:00:03]} 36. f3 {[%emt 0:00:04]} h5 {[%emt 0:00:14]} 37. h4 {[%emt 0:00:01]} gxh4+ {[%emt 0:00:14]} 38. Kxh4 {[%emt 0:00:02]} Kg6 {[%emt 0:00:01]} 39. g4 {[%emt 0:00:02]} hxg4 {[%emt 0:00:02]} 40. fxg4 {[%emt 0:00:01]} Kg7 {[%emt 0:00:03]} 41. Kg5 {[%emt 0:00:02]} Kh7 {[%emt 0:00:13]} 42. Kf6 {[%emt 0:00:01]} Kh8 {[%emt 0:00:05]} 43. g5 {[%emt 0:00:02]} Kg8 {[%emt 0:00:01]} 44. g6 {[%emt 0:00:02]} Kf8 {[%emt 0:00:03]} 45. Bb4+ {[%emt 0:00:13]} Kg8 {[%emt 0:00:02]} 46. g7 {[%emt 0:00:01]} Kh7 {[%emt 0:00:04]} 47. Kf7 {[%emt 0:00:01]} 1-0

[Event "3rd FIDE WCCC Blitz G10 2019"]
[Site "Minsk"]
[Date "2019.08.18"]
[Round "2.6"]
[White "Wojs, Alicja"]
[Black "Satanovskaia, Evgeniia"]
[Result "0-1"]
[ECO "C02"]
[WhiteElo "1228"]
[BlackElo "1399"]
[Annotator "NA"]
[PlyCount "140"]
[EventDate "2019.08.18"]
[EventType "swiss"]
[EventCountry "BLR"]
[SourceTitle "playchess.com"]
[Source "ChessBase"]
[SourceQuality "1"]
[TimeControl "300+2"]

1. e4 {[%emt 0:00:00]} e6 {[%emt 0:00:00]} 2. d4 {[%emt 0:00:00]} d5 {[%emt 0:00:00]} 3. e5 {[%emt 0:00:00]} c5 {[%emt 0:00:00]} 4. c3 {[%emt 0:00:00]} Qb6 {[%emt 0:00:01]} 5. Nf3 {[%emt 0:00:02]} Bd7 {[%emt 0:00:01]} 6. a3 {[%emt 0:00:03]} cxd4 {[%emt 0:00:03]} 7. cxd4 {[%emt 0:00:01]} Bb5 {[%emt 0:00:00]} 8. Bxb5+ {[%emt 0:00:02]} Qxb5 {[%emt 0:00:01]} 9. b4 {[%emt 0:00:05]} Ne7 {[%emt 0:00:03]} 10. Nc3 {[%emt 0:00:01]} Qd7 {[%emt 0:00:01]} 11. O-O {[%emt 0:00:04]} Nbc6 {[%emt 0:00:01]} 12. Be3 {[%emt 0:00:04]} Nf5 {[%emt 0:00:03]} 13. Na4 {[%emt 0:00:01]} b6 14. Rc1 {[%emt 0:00:05]} Be7 {[%emt 0:00:19]} 15. Nc3 {[%emt 0:00:07]} O-O {[%emt 0:00:06]} 16. Qd2 {[%emt 0:00:01]} Rac8 {[%emt 0:00:06]} 17. Rfd1 {[%emt 0:00:09]} Qb7 {[%emt 0:00:37]} 18. Qb2 {[%emt 0:00:03]} Nb8 {[%emt 0:00:19]} 19. Ne2 {[%emt 0:00:08]} Nd7 {[%emt 0:00:07]} 20. Rxc8 {[%emt 0:00:07]} Rxc8 {[%emt 0:00:01]} 21. Rc1 {[%emt 0:00:01]} b5 {[%emt 0:00:13]} 22. Nc3 {[%emt 0:00:16]} a6 {[%emt 0:00:06]} 23. Ne2 {[%emt 0:00:03]} Nb6 {[%emt 0:00:07]} 24. Qb3 {[%emt 0:00:14]} Nc4 {[%emt 0:00:04]} 25. Nd2 {[%emt 0:00:21]} Nfxe3 {[%emt 0:00:11]} 26. Nxc4 {[%emt 0:00:16]} Nxc4 {[%emt 0:00:13]} 27. Nc3 {[%emt 0:00:11]} Nb6 {[%emt 0:00:19]} 28. Qb2 {[%emt 0:00:06]} h6 {[%emt 0:00:10]} 29. Qd2 {[%emt 0:00:13]} Na4 {[%emt 0:00:12]} 30. Nxa4 {[%emt 0:00:08]} Rxc1+ {[%emt 0:00:06]} 31. Qxc1 {[%emt 0:00:02]} bxa4 {[%emt 0:00:01]} 32. h3 {[%emt 0:00:04]} Kf8 {[%emt 0:00:02]} 33. Qc3 {[%emt 0:00:06]} Ke8 {[%emt 0:00:06]} 34. Qg3 {[%emt 0:00:19]} g6 {[%emt 0:00:17]} 35. Qc3 {[%emt 0:00:04]} Kd7 {[%emt 0:00:04]} 36. f4 {[%emt 0:00:12]} Qc6 {[%emt 0:00:10]} 37. Qe3 {[%emt 0:00:15]} Qc4 {[%emt 0:00:04]} 38. Kf2 {[%emt 0:00:09]} Bd8 {[%emt 0:00:01]} 39. Ke1 {[%emt 0:00:13]} Bb6 {[%emt 0:00:06]} 40. Qf3 {[%emt 0:00:11]} Bxd4 {[%emt 0:00:04]} 41. Kd2 {[%emt 0:00:05]} Qa2+ {[%emt 0:00:32]} 42. Ke1 {[%emt 0:00:08]} Qa1+ {[%emt 0:00:04]} 43. Kd2 {[%emt 0:00:03]} Qb2+ {[%emt 0:00:05]} 44. Kd1 {[%emt 0:00:05]} Qb3+ {[%emt 0:00:06]} 45. Qxb3 {[%emt 0:00:05]} axb3 {[%emt 0:00:01]} 46. Kc1 {[%emt 0:00:01]} Kc6 {[%emt 0:00:04]} 47. g3 {[%emt 0:00:04]} Bf2 {[%emt 0:00:03]} 48. g4 {[%emt 0:00:06]} Be3+ {[%emt 0:00:01]} 49. Kb2 {[%emt 0:00:04]} Bxf4 {[%emt 0:00:01]} 50. Kxb3 {[%emt 0:00:01]} Bxe5 {[%emt 0:00:01]} 51. a4 {[%emt 0:00:02]} f5 {[%emt 0:00:04]} 52. gxf5 {[%emt 0:00:02]} exf5 {[%emt 0:00:01]} 53. Kc2 {[%emt 0:00:01]} f4 {[%emt 0:00:01]} 54. Kd2 {[%emt 0:00:01]} d4 {[%emt 0:00:02]} 55. Ke2 {[%emt 0:00:02]} Kd5 {[%emt 0:00:01]} 56. Kd3 {[%emt 0:00:01]} f3 {[%emt 0:00:01]} 57. h4 {[%emt 0:00:01]} f2 {[%emt 0:00:01]} 58. Ke2 {[%emt 0:00:01]} Bg3 {[%emt 0:00:05]} 59. h5 {[%emt 0:00:05]} gxh5 {[%emt 0:00:01]} 60. b5 {[%emt 0:00:01]} axb5 {[%emt 0:00:01]} 61. axb5 {[%emt 0:00:01]} d3+ {[%emt 0:00:02]} 62. Kf1 {[%emt 0:00:06]} d2 {[%emt 0:00:09]} 63. Ke2 {[%emt 0:00:01]} d1=Q+ {[%emt 0:00:03]} 64. Kxd1 {[%emt 0:00:02]} f1=Q+ {[%emt 0:00:02]} 65. Kc2 {[%emt 0:00:01]} Qc4+ {[%emt 0:00:03]} 66. Kd2 {[%emt 0:00:02]} Bf4+ {[%emt 0:00:01]} 67. Ke1 {[%emt 0:00:02]} Qc2 {[%emt 0:00:03]} 68. Kf1 {[%emt 0:00:01]} Bg3 {[%emt 0:00:02]} 69. Kg1 {[%emt 0:00:03]} Qf2+ 70. Kh1 {[%emt 0:00:02]} Qh2# 0-1

[Event "3rd FIDE WCCC Blitz G10 2019"]
[Site "Minsk"]
[Date "2019.08.18"]
[Round "3.1"]
[White "Shukhman, Anna"]
[Black "Kulygina, Uliyana"]
[Result "*"]
[ECO "B11"]
[WhiteElo "1806"]
[BlackElo "1358"]
[Annotator "NA"]
[PlyCount "33"]
[EventDate "2019.08.18"]
[EventType "swiss"]
[EventCountry "BLR"]
[SourceTitle "playchess.com"]
[Source "ChessBase"]
[SourceQuality "1"]
[TimeControl "300+2"]

1. e4 {[%emt 0:00:00]} c6 {[%emt 0:00:00]} 2. Nc3 {[%emt 0:00:03]} d5 {[%emt 0:00:00]} 3. Nf3 {[%emt 0:00:01]} Bg4 {[%emt 0:00:02]} 4. h3 {[%emt 0:00:02]} Bxf3 {[%emt 0:00:01]} 5. Qxf3 {[%emt 0:00:01]} e6 {[%emt 0:00:02]} 6. d3 {[%emt 0:00:04]} Nf6 {[%emt 0:00:02]} 7. Bd2 {[%emt 0:00:10]} Be7 {[%emt 0:00:03]} 8. g4 {[%emt 0:00:01]} Nbd7 {[%emt 0:00:25]} 9. g5 {[%emt 0:00:05]} Ne5 {[%emt 0:00:22]} 10. Qg3 {[%emt 0:00:05]} Nfd7 {[%emt 0:00:01]} 11. f4 {[%emt 0:00:06]} Ng6 {[%emt 0:00:11]} 12. O-O-O {[%emt 0:00:10]} Qc7 {[%emt 0:00:05]} 13. h4 {[%emt 0:00:12]} O-O-O {[%emt 0:00:04]} 14. h5 {[%emt 0:00:03]} Ngf8 {[%emt 0:00:01]} 15. exd5 {[%emt 0:00:05]} exd5 {[%emt 0:00:07]} 16. Bh3 {[%emt 0:00:02]} f6 {[%emt 0:00:21]} 17. Rde1 {[%emt 0:00:28]} *

[Event "3rd FIDE WCCC Blitz G10 2019"]
[Site "Minsk"]
[Date "2019.08.18"]
[Round "3.2"]
[White "Zavivaeva, Evelina"]
[Black "Nurgaliyeva, Zarina"]
[Result "*"]
[ECO "C54"]
[WhiteElo "1302"]
[BlackElo "1474"]
[Annotator "NA"]
[PlyCount "27"]
[EventDate "2019.08.18"]
[EventType "swiss"]
[EventCountry "BLR"]
[SourceTitle "playchess.com"]
[Source "ChessBase"]
[SourceQuality "1"]
[TimeControl "300+2"]

1. e4 {[%emt 0:00:00]} e5 {[%emt 0:00:00]} 2. Nf3 {[%emt 0:00:00]} Nc6 {[%emt 0:00:00]} 3. Bc4 {[%emt 0:00:02]} Bc5 {[%emt 0:00:01]} 4. c3 {[%emt 0:00:03]} Nf6 {[%emt 0:00:01]} 5. d3 {[%emt 0:00:00]} h6 {[%emt 0:00:05]} 6. Nbd2 {[%emt 0:00:04]} d6 {[%emt 0:00:08]} 7. Bb3 {[%emt 0:00:01]} O-O {[%emt 0:00:04]} 8. h3 {[%emt 0:00:03]} Re8 {[%emt 0:00:02]} 9. Nf1 {[%emt 0:00:03]} Be6 {[%emt 0:00:08]} 10. Bc2 {[%emt 0:00:01]} d5 {[%emt 0:00:02]} 11. Ng3 {[%emt 0:00:52]} Bf8 {[%emt 0:00:04]} 12. O-O {[%emt 0:00:07]} Qd7 {[%emt 0:00:06]} 13. Be3 {[%emt 0:00:53]} Rad8 {[%emt 0:00:11]} 14. Qe2 {[%emt 0:00:11]} *

[Event "3rd FIDE WCCC Blitz G10 2019"]
[Site "Minsk"]
[Date "2019.08.18"]
[Round "3.3"]
[White "Bendik, Margarita"]
[Black "Sidorenja, Milena"]
[Result "*"]
[ECO "B01"]
[WhiteElo "1188"]
[BlackElo "1573"]
[Annotator "NA"]
[PlyCount "26"]
[EventDate "2019.08.18"]
[EventType "swiss"]
[EventCountry "BLR"]
[SourceTitle "playchess.com"]
[Source "ChessBase"]
[SourceQuality "1"]
[TimeControl "300+2"]

1. e4 {[%emt 0:00:00]} d5 {[%emt 0:00:00]} 2. exd5 {[%emt 0:00:00]} Qxd5 {[%emt 0:00:00]} 3. Nc3 {[%emt 0:00:07]} Qa5 {[%emt 0:00:01]} 4. d4 {[%emt 0:00:06]} Nf6 {[%emt 0:00:03]} 5. Nf3 {[%emt 0:00:04]} Bg4 {[%emt 0:00:01]} 6. Be2 {[%emt 0:00:02]} Nc6 {[%emt 0:00:02]} 7. O-O {[%emt 0:00:07]} O-O-O {[%emt 0:00:03]} 8. Be3 {[%emt 0:00:26]} e5 {[%emt 0:00:08]} 9. d5 {[%emt 0:00:06]} Nxd5 {[%emt 0:00:31]} 10. Nxd5 {[%emt 0:00:16]} Rxd5 {[%emt 0:00:02]} 11. Qc1 {[%emt 0:00:11]} Bc5 {[%emt 0:00:37]} 12. Bxc5 {[%emt 0:00:16]} Qxc5 {[%emt 0:00:04]} 13. c4 {[%emt 0:00:23]} Rdd8 {[%emt 0:00:11]} *

[Event "3rd FIDE WCCC Blitz G10 2019"]
[Site "Minsk"]
[Date "2019.08.18"]
[Round "3.4"]
[White "Satanovskaia, Evgeniia"]
[Black "Huynh, Phuc Minh Phuong"]
[Result "*"]
[ECO "D45"]
[WhiteElo "1399"]
[BlackElo "1254"]
[Annotator "NA"]
[PlyCount "36"]
[EventDate "2019.08.18"]
[EventType "swiss"]
[EventCountry "BLR"]
[SourceTitle "playchess.com"]
[Source "ChessBase"]
[SourceQuality "1"]
[TimeControl "300+2"]

1. d4 {[%emt 0:00:00]} d5 {[%emt 0:00:00]} 2. c4 {[%emt 0:00:00]} c6 {[%emt 0:00:00]} 3. e3 {[%emt 0:00:00]} Nf6 {[%emt 0:00:02]} 4. Nc3 {[%emt 0:00:01]} e6 {[%emt 0:00:01]} 5. Nf3 {[%emt 0:00:02]} Nbd7 {[%emt 0:00:01]} 6. Qc2 {[%emt 0:00:02]} Be7 {[%emt 0:00:03]} 7. b3 {[%emt 0:00:01]} O-O {[%emt 0:00:04]} 8. Be2 {[%emt 0:00:01]} h6 {[%emt 0:00:08]} 9. O-O {[%emt 0:00:02]} b6 {[%emt 0:00:00]} 10. Bb2 {[%emt 0:00:04]} Bb7 {[%emt 0:00:01]} 11. e4 {[%emt 0:00:03]} dxe4 {[%emt 0:00:07]} 12. Nxe4 {[%emt 0:00:03]} c5 {[%emt 0:00:04]} 13. Nxf6+ {[%emt 0:00:09]} Nxf6 {[%emt 0:00:11]} 14. dxc5 {[%emt 0:00:01]} Bxc5 {[%emt 0:00:01]} 15. Ne5 {[%emt 0:00:12]} Qc7 {[%emt 0:00:25]} 16. Bf3 {[%emt 0:00:12]} Bxf3 {[%emt 0:00:41]} 17. Nxf3 {[%emt 0:00:07]} Qf4 {[%emt 0:00:01]} 18. Be5 {[%emt 0:00:29]} Qe4 {[%emt 0:00:19]} *

[Event "3rd FIDE WCCC Blitz G10 2019"]
[Site "Minsk"]
[Date "2019.08.18"]
[Round "3.5"]
[White "Khamdamova, Afruza"]
[Black "Mai, Hieu Linh"]
[Result "*"]
[ECO "C77"]
[WhiteElo "1607"]
[BlackElo "1344"]
[Annotator "NA"]
[PlyCount "34"]
[EventDate "2019.08.18"]
[EventType "swiss"]
[EventCountry "BLR"]
[SourceTitle "playchess.com"]
[Source "ChessBase"]
[SourceQuality "1"]
[TimeControl "300+2"]

1. e4 {[%emt 0:00:00]} e5 {[%emt 0:00:00]} 2. Nf3 {[%emt 0:00:00]} Nc6 {[%emt 0:00:00]} 3. Bb5 {[%emt 0:00:00]} a6 {[%emt 0:00:01]} 4. Ba4 {[%emt 0:00:00]} Nf6 {[%emt 0:00:01]} 5. d3 {[%emt 0:00:02]} b5 {[%emt 0:00:02]} 6. Bb3 {[%emt 0:00:01]} Bc5 {[%emt 0:00:01]} 7. Nc3 {[%emt 0:00:01]} d6 {[%emt 0:00:02]} 8. Nd5 {[%emt 0:00:07]} h6 {[%emt 0:00:14]} 9. c3 {[%emt 0:00:01]} O-O {[%emt 0:00:19]} 10. O-O {[%emt 0:00:02]} Bg4 {[%emt 0:00:09]} 11. h3 {[%emt 0:00:08]} Bh5 {[%emt 0:00:08]} 12. Nxf6+ {[%emt 0:00:02]} Qxf6 {[%emt 0:00:03]} 13. Bd5 {[%emt 0:00:01]} Ne7 {[%emt 0:00:49]} 14. Bxa8 {[%emt 0:00:02]} Rxa8 {[%emt 0:00:01]} 15. Be3 {[%emt 0:00:01]} Bb6 {[%emt 0:00:50]} 16. Bxb6 {[%emt 0:00:02]} cxb6 {[%emt 0:00:01]} 17. Qe2 {[%emt 0:00:02]} Qg6 *

[Event "3rd FIDE WCCC Blitz G10 2019"]
[Site "Minsk"]
[Date "2019.08.18"]
[Round "3.6"]
[White "Loviagina, Dariana"]
[Black "Smietanska, Wiktoria"]
[Result "*"]
[ECO "A06"]
[WhiteElo "1421"]
[BlackElo "1594"]
[Annotator "NA"]
[PlyCount "29"]
[EventDate "2019.08.18"]
[EventType "swiss"]
[EventCountry "BLR"]
[SourceTitle "playchess.com"]
[Source "ChessBase"]
[SourceQuality "1"]
[TimeControl "300+2"]

1. Nf3 {[%emt 0:00:00]} d5 {[%emt 0:00:00]} 2. b3 {[%emt 0:00:01]} c5 {[%emt 0:00:04]} 3. e3 {[%emt 0:00:01]} Nc6 {[%emt 0:00:02]} 4. Bb2 {[%emt 0:00:01]} a6 {[%emt 0:00:06]} 5. d4 {[%emt 0:00:03]} cxd4 {[%emt 0:00:18]} 6. exd4 {[%emt 0:00:02]} Nf6 {[%emt 0:00:03]} 7. a4 {[%emt 0:00:02]} Bg4 {[%emt 0:00:06]} 8. g3 {[%emt 0:00:11]} e6 {[%emt 0:00:05]} 9. Bg2 {[%emt 0:00:02]} Be7 {[%emt 0:00:17]} 10. O-O {[%emt 0:00:02]} O-O {[%emt 0:00:07]} 11. Nbd2 {[%emt 0:00:18]} Ne4 {[%emt 0:00:27]} 12. Re1 {[%emt 0:00:03]} Nxd2 {[%emt 0:00:11]} 13. Qxd2 {[%emt 0:00:03]} Bf6 {[%emt 0:00:12]} 14. Ne5 {[%emt 0:00:19]} Bf5 {[%emt 0:00:23]} 15. f4 {[%emt 0:00:06]} *

[Event "3rd FIDE WCCC Blitz G10 2019"]
[Site "Minsk"]
[Date "2019.08.18"]
[Round "4.1"]
[White "Mizerova, Yana"]
[Black "Shukhman, Anna"]
[Result "0-1"]
[ECO "A45"]
[WhiteElo "1451"]
[BlackElo "1806"]
[Annotator "NA"]
[PlyCount "54"]
[EventDate "2019.08.18"]
[EventType "swiss"]
[EventCountry "BLR"]
[SourceTitle "playchess.com"]
[Source "ChessBase"]
[SourceQuality "1"]
[TimeControl "300+2"]

1. d4 {[%emt 0:00:00]} Nf6 {[%emt 0:00:00]} 2. Bg5 {[%emt 0:00:00]} Ne4 {[%emt 0:00:01]} 3. Bh4 {[%emt 0:00:01]} g5 {[%emt 0:00:01]} 4. Bg3 {[%emt 0:00:03]} h5 {[%emt 0:00:09]} 5. f3 {[%emt 0:00:21]} Nxg3 {[%emt 0:00:02]} 6. hxg3 {[%emt 0:00:02]} d5 {[%emt 0:00:02]} 7. e3 {[%emt 0:00:12]} Bg7 {[%emt 0:00:16]} 8. Bd3 {[%emt 0:00:15]} c5 {[%emt 0:00:03]} 9. c3 {[%emt 0:00:03]} Nc6 {[%emt 0:00:17]} 10. dxc5 {[%emt 0:00:17]} Qa5 {[%emt 0:00:07]} 11. Ne2 {[%emt 0:00:41]} Qxc5 {[%emt 0:00:04]} 12. Qd2 {[%emt 0:00:16]} Be6 {[%emt 0:00:10]} 13. Nd4 {[%emt 0:00:14]} O-O-O {[%emt 0:00:49]} 14. Nxe6 {[%emt 0:00:34]} fxe6 {[%emt 0:00:02]} 15. Bg6 {[%emt 0:00:06]} h4 {[%emt 0:00:53]} 16. gxh4 {[%emt 0:00:14]} gxh4 {[%emt 0:00:02]} 17. Na3 {[%emt 0:00:22]} Bh6 {[%emt 0:00:25]} 18. Nc2 {[%emt 0:00:17]} e5 {[%emt 0:00:19]} 19. Rxh4 {[%emt 0:00:49]} Bxe3 {[%emt 0:00:29]} 20. Qxe3 {[%emt 0:00:05]} Qxe3+ {[%emt 0:00:02]} 21. Nxe3 {[%emt 0:00:02]} Rxh4 {[%emt 0:00:02]} 22. O-O-O {[%emt 0:00:06]} d4 {[%emt 0:00:05]} 23. cxd4 {[%emt 0:00:13]} exd4 {[%emt 0:00:01]} 24. Nf5 {[%emt 0:00:07]} Rh2 {[%emt 0:00:09]} 25. g4 {[%emt 0:00:21]} d3 {[%emt 0:00:23]} 26. Ne3 {[%emt 0:00:03]} d2+ {[%emt 0:00:03]} 27. Kc2 {[%emt 0:00:02]} Nd4+ 0-1

[Event "3rd FIDE WCCC Blitz G10 2019"]
[Site "Minsk"]
[Date "2019.08.18"]
[Round "4.2"]
[White "Nurgaliyeva, Zarina"]
[Black "Zubkovskaya, Ekaterina"]
[Result "1-0"]
[ECO "C49"]
[WhiteElo "1474"]
[BlackElo "1363"]
[Annotator "NA"]
[PlyCount "99"]
[EventDate "2019.08.18"]
[EventType "swiss"]
[EventCountry "BLR"]
[SourceTitle "playchess.com"]
[Source "ChessBase"]
[SourceQuality "1"]
[TimeControl "300+2"]

1. e4 {[%emt 0:00:00]} e5 {[%emt 0:00:00]} 2. Nf3 {[%emt 0:00:00]} Nc6 {[%emt 0:00:00]} 3. Nc3 {[%emt 0:00:01]} Nf6 {[%emt 0:00:02]} 4. Bb5 {[%emt 0:00:01]} Bb4 {[%emt 0:00:02]} 5. O-O {[%emt 0:00:02]} O-O {[%emt 0:00:03]} 6. d3 {[%emt 0:00:01]} a6 {[%emt 0:00:06]} 7. Bxc6 {[%emt 0:00:03]} dxc6 {[%emt 0:00:13]} 8. Nxe5 {[%emt 0:00:02]} Bd6 {[%emt 0:00:21]} 9. Nf3 {[%emt 0:00:05]} Bg4 {[%emt 0:00:03]} 10. h3 {[%emt 0:00:02]} Bh5 {[%emt 0:00:02]} 11. Bg5 {[%emt 0:00:07]} h6 {[%emt 0:00:11]} 12. Bh4 {[%emt 0:00:02]} Be7 {[%emt 0:00:05]} 13. Bxf6 {[%emt 0:01:04]} Bxf6 {[%emt 0:00:03]} 14. g4 {[%emt 0:00:01]} Bg6 {[%emt 0:00:04]} 15. Nd2 {[%emt 0:00:10]} b5 {[%emt 0:00:17]} 16. a3 {[%emt 0:00:08]} Rb8 {[%emt 0:00:15]} 17. Nb3 {[%emt 0:00:06]} Re8 {[%emt 0:00:34]} 18. f4 {[%emt 0:00:07]} Bd4+ {[%emt 0:00:02]} 19. Kg2 {[%emt 0:00:06]} f6 {[%emt 0:00:02]} 20. Qf3 {[%emt 0:00:05]} Bb6 {[%emt 0:00:17]} 21. Rae1 {[%emt 0:00:08]} a5 {[%emt 0:00:07]} 22. Nd1 {[%emt 0:00:47]} Bf7 {[%emt 0:00:11]} 23. Nc1 {[%emt 0:00:11]} Qd7 {[%emt 0:00:12]} 24. Ne2 {[%emt 0:00:06]} Qe7 {[%emt 0:00:17]} 25. Nf2 {[%emt 0:00:05]} Rbd8 {[%emt 0:00:19]} 26. Ng3 {[%emt 0:00:03]} Qd7 {[%emt 0:00:14]} 27. Re2 {[%emt 0:00:16]} Rc8 {[%emt 0:00:22]} 28. Rfe1 {[%emt 0:00:02]} Rcd8 {[%emt 0:00:21]} 29. Nfh1 {[%emt 0:00:18]} g6 {[%emt 0:00:29]} 30. h4 {[%emt 0:00:17]} Rf8 {[%emt 0:00:31]} 31. h5 {[%emt 0:00:10]} g5 {[%emt 0:00:01]} 32. Nf5 {[%emt 0:00:03]} Kh7 {[%emt 0:00:02]} 33. Nhg3 {[%emt 0:00:05]} Rg8 {[%emt 0:00:03]} 34. Rh1 {[%emt 0:00:09]} Be6 {[%emt 0:00:04]} 35. Kh2 {[%emt 0:00:09]} gxf4 {[%emt 0:00:01]} 36. Qxf4 {[%emt 0:00:03]} Bxf5 {[%emt 0:00:04]} 37. Nxf5 {[%emt 0:00:02]} Rg5 {[%emt 0:00:07]} 38. Kh3 {[%emt 0:00:04]} Qf7 {[%emt 0:00:01]} 39. Rg2 {[%emt 0:00:03]} Qg8 {[%emt 0:00:01]} 40. e5 {[%emt 0:00:10]} fxe5 {[%emt 0:00:01]} 41. Qxe5 {[%emt 0:00:03]} Rd7 {[%emt 0:00:01]} 42. Qf6 {[%emt 0:00:10]} Rd6 {[%emt 0:00:04]} 43. Nxd6 {[%emt 0:00:02]} cxd6 {[%emt 0:00:01]} 44. Qxd6 {[%emt 0:00:03]} Qe8 {[%emt 0:00:02]} 45. Rf1 {[%emt 0:00:08]} Qe3+ {[%emt 0:00:01]} 46. Rg3 {[%emt 0:00:02]} Qe8 {[%emt 0:00:01]} 47. Rf6 {[%emt 0:00:04]} Rg6 {[%emt 0:00:03]} 48. hxg6+ {[%emt 0:00:01]} Kh8 {[%emt 0:00:01]} 49. Rf8+ {[%emt 0:00:02]} Qxf8 {[%emt 0:00:01]} 50. Qxf8# {[%emt 0:00:02]} 1-0